Workbook

Sheet Funkce
A1: Funkce | B1: sin(x)/x
A2: Min x | B2: -20
A3: Max x | B3: 20
A4: Počet bodů | B4: 500
A5: Krok | B5: =($B$3-$B$2)/$B$4 -> 0.08

Sheet Data
A1: x | B1: f(x) | C1: ∆x | D1: ∆y | E1: f'(x) | F1: P | G1: I(x)
A2: =Funkce!$B$2 -> -20 | B2: =fce -> 0.04564726254 | C2: =A3-A2 -> 0.08 | D2: =B3-B2 -> -0.00160039353 | E2: =D2/C2 -> -0.02000491913 | F2: =0.5*C2*(B2+B3) -> 0.003587765262 | G2: =F2 -> 0.003587765262
A3: =A2+Funkce!$B$5 -> -19.92 | B3: =fce -> 0.04404686901 | C3: =A4-A3 -> 0.08 | D3: =B4-B3 -> -0.001896185664 | E3: =D3/C3 -> -0.0237023208 | F3: =0.5*C3*(B3+B4) -> 0.003447902094 | G3: =F3+G2 -> 0.007035667356
A4: =A3+Funkce!$B$5 -> -19.84 | B4: =fce -> 0.04215068334 | C4: 0.08 | D4: -0.002182251505 | E4: -0.02727814381 | F4: 0.003284764607 | G4: =F4+G3 -> 0.01032043196
A5: =A4+Funkce!$B$5 -> -19.76 | B5: =fce -> 0.03996843184 | C5: 0.08 | D5: -0.002456694229 | E5: -0.03070867786 | F5: 0.003099206778 | G5: 0.01341963874
A6: =A5+Funkce!$B$5 -> -19.68 | B6: =fce -> 0.03751173761 | C6: 0.08 | D6: -0.00271767536 | E6: -0.033970942 | F6: 0.002892231994 | G6: 0.01631187073
A7: =A6+Funkce!$B$5 -> -19.6 | B7: =fce -> 0.03479406225 | C7: 0.08 | D7: -0.002963426792 | E7: -0.0370428349 | F7: 0.002664987908 | G7: 0.01897685864
A8: =A7+Funkce!$B$5 -> -19.52 | B8: =fce -> 0.03183063546 | C8: 0.08 | D8: -0.003192262468 | E8: -0.03990328085 | F8: 0.002418760338 | G8: 0.02139561898
A9: =A8+Funkce!$B$5 -> -19.44 | B9: =fce -> 0.02863837299 | C9: 0.08 | D9: -0.003402589633 | E9: -0.04253237041 | F9: 0.002154966254 | G9: 0.02355058523
A10: =A9+Funkce!$B$5 -> -19.36 | B10: =fce -> 0.02523578336 | C10: 0.08 | D10: -0.003592919589 | E10: -0.04491149487 | F10: 0.001875145885 | G10: 0.02542573112
A11: =A10+Funkce!$B$5 -> -19.28 | B11: =fce -> 0.02164286377 | C11: 0.08 | D11: -0.003761877891 | E11: -0.04702347363 | F11: 0.001580953986 | G11: 0.02700668511
A12: =A11+Funkce!$B$5 -> -19.2 | B12: =fce -> 0.01788098588 | C12: 0.08 | D12: -0.003908213895 | E12: -0.04885267369 | F12: 0.001274150314 | G12: 0.02828083542
A13: =A12+Funkce!$B$5 -> -19.12 | B13: =fce -> 0.01397277198 | C13: 0.08 | D13: -0.004030809624 | E13: -0.0503851203 | F13: 0.0009565893735 | G13: 0.02923742479
A14: =A13+Funkce!$B$5 -> -19.04 | B14: =fce -> 0.009941962357 | C14: 0.08 | D14: -0.004128687858 | E14: -0.05160859823 | F14: 0.0006302094742 | G14: 0.02986763427
A15: =A14+Funkce!$B$5 -> -18.96 | B15: =fce -> 0.005813274499 | C15: 0.08 | D15: -0.004201019421 | E15: -0.05251274276 | F15: 0.0002970211831 | G15: 0.03016465545
A16: =A15+Funkce!$B$5 -> -18.88 | B16: =fce -> 0.001612255078 | C16: 0.08 | D16: -0.004247129593 | E16: -0.05308911991 | F16: -4.090477748e-05 | G16: 0.03012375067
A17: =A16+Funkce!$B$5 -> -18.8 | B17: =fce -> -0.002634874515 | C17: 0.08 | D17: -0.004266503614 | E17: -0.05333129518 | F17: -0.0003814501057 | G17: 0.02974230057
A18: =A17+Funkce!$B$5 -> -18.72 | B18: =fce -> -0.006901378129 | C18: 0.08 | D18: -0.00425879123 | E18: -0.05323489037 | F18: -0.0007224618995 | G18: 0.02901983867
A19: =A18+Funkce!$B$5 -> -18.64 | B19: =fce -> -0.01116016936 | C19: 0.08 | D19: -0.004223810246 | E19: -0.05279762807 | F19: -0.001061765959 | G19: 0.02795807271
A20: =A19+Funkce!$B$5 -> -18.56 | B20: =fce -> -0.0153839796 | C20: 0.08 | D20: -0.004161549066 | E20: -0.05201936333 | F20: -0.001397180331 | G20: 0.02656089238
A21: =A20+Funkce!$B$5 -> -18.48 | B21: =fce -> -0.01954552867 | C21: 0.08 | D21: -0.004072168181 | E21: -0.05090210227 | F21: -0.001726529021 | G21: 0.02483436336
A22: =A21+Funkce!$B$5 -> -18.4 | B22: =fce -> -0.02361769685 | C22: 0.08 | D22: -0.003956000601 | E22: -0.04945000751 | F22: -0.002047655772 | G22: 0.02278670759
A23: =A22+Funkce!$B$5 -> -18.32 | B23: =fce -> -0.02757369745 | C23: 0.08 | D23: -0.003813551209 | E23: -0.04766939012 | F23: -0.002358437845 | G23: 0.02042826974
A24: =A23+Funkce!$B$5 -> -18.24 | B24: =fce -> -0.03138724866 | C24: 0.08 | D24: -0.003645495045 | E24: -0.04556868807 | F24: -0.002656799695 | G24: 0.01777147005
A25: =A24+Funkce!$B$5 -> -18.16 | B25: =fce -> -0.03503274371 | C25: 0.08 | D25: -0.003452674508 | E25: -0.04315843135 | F25: -0.002940726477 | G25: 0.01483074357
A26: =A25+Funkce!$B$5 -> -18.08 | B26: =fce -> -0.03848541822 | C26: 0.08 | D26: -0.003236095494 | E26: -0.04045119368 | F26: -0.003208277277 | G26: 0.01162246629
A27: =A26+Funkce!$B$5 -> -18 | B27: =fce -> -0.04172151371 | C27: 0.08 | D27: -0.002996922488 | E27: -0.0374615311 | F27: -0.003457597996 | G27: 0.008164868295
A28: =A27+Funkce!$B$5 -> -17.92 | B28: =fce -> -0.0447184362 | C28: 0.08 | D28: -0.002736472616 | E28: -0.0342059077 | F28: -0.0036869338 | G28: 0.004477934495
A29: =A28+Funkce!$B$5 -> -17.84 | B29: =fce -> -0.04745490881 | C29: 0.08 | D29: -0.002456208711 | E29: -0.03070260889 | F29: -0.003894641054 | G29: 0.0005832934415
A30: =A29+Funkce!$B$5 -> -17.76 | B30: =fce -> -0.04991111752 | C30: 0.08 | D30: -0.0021577314 | E30: -0.0269716425 | F30: -0.004079198658 | G30: -0.003495905216
A31: =A30+Funkce!$B$5 -> -17.68 | B31: =fce -> -0.05206884892 | C31: 0.08 | D31: -0.001842770275 | E31: -0.02303462844 | F31: -0.004239218725 | G31: -0.007735123941
A32: =A31+Funkce!$B$5 -> -17.6 | B32: =fce -> -0.0539116192 | C32: 0.08 | D32: -0.001513174184 | E32: -0.0189146773 | F32: -0.004373456503 | G32: -0.01210858044
A33: =A32+Funkce!$B$5 -> -17.52 | B33: =fce -> -0.05542479338 | C33: 0.08 | D33: -0.001170900699 | E33: -0.01463625874 | F33: -0.004480819499 | G33: -0.01658939994
A34: =A33+Funkce!$B$5 -> -17.44 | B34: =fce -> -0.05659569408 | C34: 0.08 | D34: -0.0008180048155 | E34: -0.01022506019 | F34: -0.004560375719 | G34: -0.02114977566
A35: =A34+Funkce!$B$5 -> -17.36 | B35: =fce -> -0.0574136989 | C35: 0.08 | D35: -0.000456626952 | E35: -0.005707836899 | F35: -0.00461136099 | G35: -0.02576113665
A36: =A35+Funkce!$B$5 -> -17.28 | B36: =fce -> -0.05787032585 | C36: 0.08 | D36: -8.898031466e-05 | E36: -0.001112253933 | F36: -0.004633185281 | G36: -0.03039432193
A37: =A36+Funkce!$B$5 -> -17.2 | B37: =fce -> -0.05795930617 | C37: 0.08 | D37: 0.000282662299 | E37: 0.003533278738 | F37: -0.004625438001 | G37: -0.03501975993
A38: =A37+Funkce!$B$5 -> -17.12 | B38: =fce -> -0.05767664387 | C38: 0.08 | D38: 0.0006559821813 | E38: 0.008199777266 | F38: -0.004587892222 | G38: -0.03960765216
A39: =A38+Funkce!$B$5 -> -17.04 | B39: =fce -> -0.05702066168 | C39: 0.08 | D39: 0.001028628799 | E39: 0.01285785999 | F39: -0.004520507783 | G39: -0.04412815994
A40: =A39+Funkce!$B$5 -> -16.96 | B40: =fce -> -0.05599203289 | C40: 0.08 | D40: 0.001398234198 | E40: 0.01747792747 | F40: -0.004423433263 | G40: -0.0485515932
A41: =A40+Funkce!$B$5 -> -16.88 | B41: =fce -> -0.05459379869 | C41: 0.08 | D41: 0.001762427642 | E41: 0.02203034553 | F41: -0.004297006789 | G41: -0.05284859999
A42: =A41+Funkce!$B$5 -> -16.8 | B42: =fce -> -0.05283137105 | C42: 0.08 | D42: 0.002118850401 | E42: 0.02648563001 | F42: -0.004141755668 | G42: -0.05699035566
A43: =A42+Funkce!$B$5 -> -16.72 | B43: =fce -> -0.05071252065 | C43: 0.08 | D43: 0.002465170586 | E43: 0.03081463232 | F43: -0.003958394828 | G43: -0.06094875049
A44: =A43+Funkce!$B$5 -> -16.64 | B44: =fce -> -0.04824735006 | C44: 0.08 | D44: 0.00279909796 | E44: 0.0349887245 | F44: -0.003747824086 | G44: -0.06469657457
A45: =A44+Funkce!$B$5 -> -16.56 | B45: =fce -> -0.0454482521 | C45: 0.08 | D45: 0.003118398617 | E45: 0.03897998271 | F45: -0.003511124223 | G45: -0.0682076988
A46: =A45+Funkce!$B$5 -> -16.48 | B46: =fce -> -0.04232985348 | C46: 0.08 | D46: 0.003420909438 | E46: 0.04276136797 | F46: -0.003249551901 | G46: -0.0714572507
A47: =A46+Funkce!$B$5 -> -16.4 | B47: =fce -> -0.03890894405 | C47: 0.08 | D47: 0.003704552249 | E47: 0.04630690311 | F47: -0.002964533434 | G47: -0.07442178413
A48: =A47+Funkce!$B$5 -> -16.32 | B48: =fce -> -0.0352043918 | C48: 0.08 | D48: 0.003967347569 | E48: 0.04959184462 | F48: -0.002657657441 | G48: -0.07707944157
A49: =A48+Funkce!$B$5 -> -16.24 | B49: =fce -> -0.03123704423 | C49: 0.08 | D49: 0.004207427883 | E49: 0.05259284853 | F49: -0.002330666423 | G49: -0.079410108
A50: =A49+Funkce!$B$5 -> -16.16 | B50: =fce -> -0.02702961635 | C50: 0.08 | D50: 0.004423050325 | E50: 0.05528812907 | F50: -0.001985447295 | G50: -0.08139555529
A51: =A50+Funkce!$B$5 -> -16.08 | B51: =fce -> -0.02260656602 | C51: 0.08 | D51: 0.004612608728 | E51: 0.0576576091 | F51: -0.001624020932 | G51: -0.08301957622
A52: =A51+Funkce!$B$5 -> -16 | B52: =fce -> -0.01799395729 | C52: 0.08 | D52: 0.004774644917 | E52: 0.05968306146 | F52: -0.001248530787 | G52: -0.08426810701
A53: =A52+Funkce!$B$5 -> -15.92 | B53: =fce -> -0.01321931237 | C53: 0.08 | D53: 0.004907859203 | E53: 0.06134824004 | F53: -0.0008612306218 | G53: -0.08512933763
A54: =A53+Funkce!$B$5 -> -15.84 | B54: =fce -> -0.008311453171 | C54: 0.08 | D54: 0.005011119994 | E54: 0.06263899993 | F54: -0.0004644714539 | G54: -0.08559380909
A55: =A54+Funkce!$B$5 -> -15.76 | B55: =fce -> -0.003300333177 | C55: 0.08 | D55: 0.00508347245 | E55: 0.06354340563 | F55: -6.068775614e-05 | G55: -0.08565449684
A56: =A55+Funkce!$B$5 -> -15.68 | B56: =fce -> 0.001783139273 | C56: 0.08 | D56: 0.005124146131 | E56: 0.06405182663 | F56: 0.0003476169871 | G56: -0.08530687985
A57: =A56+Funkce!$B$5 -> -15.6 | B57: =fce -> 0.006907285404 | C57: 0.08 | D57: 0.005132561577 | E57: 0.06415701971 | F57: 0.0007578852954 | G57: -0.08454899456
A58: =A57+Funkce!$B$5 -> -15.52 | B58: =fce -> 0.01203984698 | C58: 0.08 | D58: 0.005108335774 | E58: 0.06385419718 | F58: 0.001167521189 | G58: -0.08338147337
A59: =A58+Funkce!$B$5 -> -15.44 | B59: =fce -> 0.01714818275 | C59: 0.08 | D59: 0.005051286454 | E59: 0.06314108068 | F59: 0.001573906079 | G59: -0.08180756729
A60: =A59+Funkce!$B$5 -> -15.36 | B60: =fce -> 0.02219946921 | C60: 0.08 | D60: 0.004961435201 | E60: 0.06201794001 | F60: 0.001974414945 | G60: -0.07983315235
A61: =A60+Funkce!$B$5 -> -15.28 | B61: =fce -> 0.02716090441 | C61: 0.08 | D61: 0.00483900933 | E61: 0.06048761663 | F61: 0.002366432726 | G61: -0.07746671962
A62: =A61+Funkce!$B$5 -> -15.2 | B62: =fce -> 0.03199991374 | C62: 0.08 | D62: 0.004684442516 | E62: 0.05855553145 | F62: 0.0027473708 | G62: -0.07471934882
A63: =A62+Funkce!$B$5 -> -15.12 | B63: =fce -> 0.03668435626 | C63: 0.08 | D63: 0.004498374157 | E63: 0.05622967696 | F63: 0.003114683467 | G63: -0.07160466535
A64: =A63+Funkce!$B$5 -> -15.04 | B64: =fce -> 0.04118273041 | C64: 0.08 | D64: 0.004281647465 | E64: 0.05352059332 | F64: 0.003465884332 | G64: -0.06813878102
A65: =A64+Funkce!$B$5 -> -14.96 | B65: =fce -> 0.04546437788 | C65: 0.08 | D65: 0.004035306287 | E65: 0.05044132859 | F65: 0.003798562482 | G65: -0.06434021854
A66: =A65+Funkce!$B$5 -> -14.88 | B66: =fce -> 0.04949968417 | C66: 0.08 | D66: 0.003760590656 | E66: 0.0470073832 | F66: 0.00411039836 | G66: -0.06022982018
A67: =A66+Funkce!$B$5 -> -14.8 | B67: =fce -> 0.05326027482 | C67: =A68-A67 -> 0.08 | D67: =B68-B67 -> 0.003458931095 | E67: =D67/C67 -> 0.04323663869 | F67: =0.5*C67*(B67+B68) -> 0.00439917923 | G67: -0.05583064095
A68: =A67+Funkce!$B$5 -> -14.72 | B68: =fce -> 0.05671920592 | C68: 0.08 | D68: 0.003131941699 | E68: 0.03914927123 | F68: 0.004662814141 | G68: =F68+G67 -> -0.05116782681
A69: =A68+Funkce!$B$5 -> -14.64 | B69: =fce -> 0.05985114762 | C69: 0.08 | D69: 0.002781412011 | E69: 0.03476765013 | F69: 0.00489934829 | G69: -0.04626847852
A70: =A69+Funkce!$B$5 -> -14.56 | B70: =fce -> 0.06263255963 | C70: 0.08 | D70: 0.002409297752 | E70: 0.03011622191 | F70: 0.00510697668 | G70: -0.04116150184
A71: =A70+Funkce!$B$5 -> -14.48 | B71: =fce -> 0.06504185738 | C71: 0.08 | D71: 0.002017710436 | E71: 0.02522138045 | F71: 0.005284057008 | G71: -0.03587744483
A72: =A71+Funkce!$B$5 -> -14.4 | B72: =fce -> 0.06705956782 | C72: 0.08 | D72: 0.001608905919 | E72: 0.02011132398 | F72: 0.005429121662 | G72: -0.03044832317
A73: =A72+Funkce!$B$5 -> -14.32 | B73: =fce -> 0.06866847373 | C73: 0.08 | D73: 0.001185271957 | E73: 0.01481589947 | F73: 0.005540888777 | G73: -0.02490743439
A74: =A73+Funkce!$B$5 -> -14.24 | B74: =fce -> 0.06985374569 | C74: 0.08 | D74: 0.0007493148333 | E74: 0.009366435416 | F74: 0.005618272249 | G74: -0.01928916214
A75: =A74+Funkce!$B$5 -> -14.16 | B75: =fce -> 0.07060306053 | C75: 0.08 | D75: 0.0003036451126 | E75: 0.003795563907 | F75: 0.005660390647 | G75: -0.0136287715
A76: =A75+Funkce!$B$5 -> -14.08 | B76: =fce -> 0.07090670564 | C76: 0.08 | D76: -0.0001490373739 | E76: -0.001862967173 | F76: 0.005666574956 | G76: -0.007962196542
A77: =A76+Funkce!$B$5 -> -14 | B77: =fce -> 0.07075766826 | C77: 0.08 | D77: -0.0006059592492 | E77: -0.007574490615 | F77: 0.005636375091 | G77: -0.002325821451
A78: =A77+Funkce!$B$5 -> -13.92 | B78: =fce -> 0.07015170901 | C78: 0.08 | D78: -0.00106428992 | E78: -0.013303624 | F78: 0.005569565124 | G78: 0.003243743674
A79: =A78+Funkce!$B$5 -> -13.84 | B79: =fce -> 0.06908741909 | C79: 0.08 | D79: -0.001521158422 | E79: -0.01901448028 | F79: 0.005466147191 | G79: 0.008709890864
A80: =A79+Funkce!$B$5 -> -13.76 | B80: =fce -> 0.06756626067 | C80: 0.08 | D80: -0.001973670687 | E80: -0.02467088359 | F80: 0.005326354026 | G80: 0.01403624489
A81: =A80+Funkce!$B$5 -> -13.68 | B81: =fce -> 0.06559258999 | C81: 0.08 | D81: -0.002418927128 | E81: -0.0302365891 | F81: 0.005150650114 | G81: 0.019186895
A82: =A81+Funkce!$B$5 -> -13.6 | B82: =fce -> 0.06317366286 | C82: 0.08 | D82: -0.00285404044 | E82: -0.0356755055 | F82: 0.004939731411 | G82: 0.02412662642
A83: =A82+Funkce!$B$5 -> -13.52 | B83: =fce -> 0.06031962242 | C83: 0.08 | D83: -0.003276153513 | E83: -0.04095191892 | F83: 0.004694523653 | G83: 0.02882115007
A84: =A83+Funkce!$B$5 -> -13.44 | B84: =fce -> 0.0570434689 | C84: 0.08 | D84: -0.00368245735 | E84: -0.04603071688 | F84: 0.004416179218 | G84: 0.03323732929
A85: =A84+Funkce!$B$5 -> -13.36 | B85: =fce -> 0.05336101155 | C85: 0.08 | D85: -0.004070208875 | E85: -0.05087761094 | F85: 0.004106072569 | G85: 0.03734340186
A86: =A85+Funkce!$B$5 -> -13.28 | B86: =fce -> 0.04929080268 | C86: 0.08 | D86: -0.004436748534 | E86: -0.05545935667 | F86: 0.003765794273 | G86: 0.04110919613
A87: =A86+Funkce!$B$5 -> -13.2 | B87: =fce -> 0.04485405414 | C87: 0.08 | D87: -0.004779517569 | E87: -0.05974396962 | F87: 0.003397143629 | G87: 0.04450633976
A88: =A87+Funkce!$B$5 -> -13.12 | B88: =fce -> 0.04007453658 | C88: 0.08 | D88: -0.005096074872 | E88: -0.0637009359 | F88: 0.003002119931 | G88: 0.04750845969
A89: =A88+Funkce!$B$5 -> -13.04 | B89: =fce -> 0.0349784617 | C89: 0.08 | D89: -0.005384113292 | E89: -0.06730141615 | F89: 0.002582912405 | G89: 0.05009137209
A90: =A89+Funkce!$B$5 -> -12.96 | B90: =fce -> 0.02959434841 | C90: 0.08 | D90: -0.005641475317 | E90: -0.07051844146 | F90: 0.00214188886 | G90: 0.05223326095
A91: =A90+Funkce!$B$5 -> -12.88 | B91: =fce -> 0.02395287309 | C91: 0.08 | D91: -0.005866168009 | E91: -0.07332710011 | F91: 0.001681583127 | G91: 0.05391484408
A92: =A91+Funkce!$B$5 -> -12.8 | B92: =fce -> 0.01808670509 | C92: 0.08 | D92: -0.006056377105 | E92: -0.07570471382 | F92: 0.001204681323 | G92: 0.0551195254
A93: =A92+Funkce!$B$5 -> -12.72 | B93: =fce -> 0.01203032798 | C93: 0.08 | D93: -0.006210480195 | E93: -0.07763100244 | F93: 0.0007140070306 | G93: 0.05583353243
A94: =A93+Funkce!$B$5 -> -12.64 | B94: =fce -> 0.005819847785 | C94: 0.08 | D94: -0.006327058874 | E94: -0.07908823592 | F94: 0.0002125054679 | G94: 0.0560460379
A95: =A94+Funkce!$B$5 -> -12.56 | B95: =fce -> -0.0005072110882 | C95: 0.08 | D95: -0.006404909795 | E95: -0.08006137244 | F95: -0.0002967732789 | G95: 0.05574926462
A96: =A95+Funkce!$B$5 -> -12.48 | B96: =fce -> -0.006912120884 | C96: 0.08 | D96: -0.006443054556 | E96: -0.08053818195 | F96: -0.0008106918529 | G96: 0.05493857277
A97: =A96+Funkce!$B$5 -> -12.4 | B97: =fce -> -0.01335517544 | C97: 0.08 | D97: -0.006440748318 | E97: -0.08050935397 | F97: -0.001326043968 | G97: 0.0536125288
A98: =A97+Funkce!$B$5 -> -12.32 | B98: =fce -> -0.01979592376 | C98: 0.08 | D98: -0.006397487127 | E98: -0.07996858908 | F98: -0.001839573386 | G98: 0.05177295542
A99: =A98+Funkce!$B$5 -> -12.24 | B99: =fce -> -0.02619341088 | C99: 0.08 | D99: -0.006313013855 | E99: -0.07891267318 | F99: -0.002347993425 | G99: 0.04942496199
A100: =A99+Funkce!$B$5 -> -12.16 | B100: =fce -> -0.03250642474 | C100: 0.08 | D100: -0.006187322724 | E100: -0.07734153405 | F100: -0.002848006888 | G100: 0.0465769551
A101: =A100+Funkce!$B$5 -> -12.08 | B101: =fce -> -0.03869374746 | C101: 0.08 | D101: -0.00602066237 | E101: -0.07525827963 | F101: -0.003336326292 | G101: 0.04324062881
A102: =A101+Funkce!$B$5 -> -12 | B102: =fce -> -0.04471440983 | C102: 0.08 | D102: -0.005813537405 | E102: -0.07266921757 | F102: -0.003809694283 | G102: 0.03943093453
A103: =A102+Funkce!$B$5 -> -11.92 | B103: =fce -> -0.05052794724 | C103: 0.08 | D103: -0.005566708464 | E103: -0.0695838558 | F103: -0.004264904118 | G103: 0.03516603041
A104: =A103+Funkce!$B$5 -> -11.84 | B104: =fce -> -0.0560946557 | C104: 0.08 | D104: -0.005281190712 | E104: -0.06601488391 | F104: -0.004698820085 | G104: 0.03046721033
A105: =A104+Funkce!$B$5 -> -11.76 | B105: =fce -> -0.06137584642 | C105: 0.08 | D105: -0.004958250812 | E105: -0.06197813515 | F105: -0.005108397746 | G105: 0.02535881258
A106: =A105+Funkce!$B$5 -> -11.68 | B106: =fce -> -0.06633409723 | C106: 0.08 | D106: -0.004599402339 | E106: -0.05749252924 | F106: -0.005490703872 | G106: 0.01986810871
A107: =A106+Funkce!$B$5 -> -11.6 | B107: =fce -> -0.07093349957 | C107: 0.08 | D107: -0.004206399679 | E107: -0.05257999599 | F107: -0.005842935952 | G107: 0.01402517276
A108: =A107+Funkce!$B$5 -> -11.52 | B108: =fce -> -0.07513989925 | C108: 0.08 | D108: -0.0037812304 | E108: -0.04726538 | F108: -0.006162441156 | G108: 0.007862731601
A109: =A108+Funkce!$B$5 -> -11.44 | B109: =fce -> -0.07892112965 | C109: 0.08 | D109: -0.003326106151 | E109: -0.04157632689 | F109: -0.006446734618 | G109: 0.001415996983
A110: =A109+Funkce!$B$5 -> -11.36 | B110: =fce -> -0.0822472358 | C110: 0.08 | D110: -0.002843452113 | E110: -0.03554315141 | F110: -0.006693516948 | G110: -0.005277519965
A111: =A110+Funkce!$B$5 -> -11.28 | B111: =fce -> -0.08509068791 | C111: 0.08 | D111: -0.00233589505 | E111: -0.02919868812 | F111: -0.006900690835 | G111: -0.0121782108
A112: =A111+Funkce!$B$5 -> -11.2 | B112: =fce -> -0.08742658296 | C112: 0.08 | D112: -0.001806250022 | E112: -0.02257812527 | F112: -0.007066376638 | G112: -0.01924458744
A113: =A112+Funkce!$B$5 -> -11.12 | B113: =fce -> -0.08923283298 | C113: 0.08 | D113: -0.001257505816 | E113: -0.0157188227 | F113: -0.007188926871 | G113: -0.02643351431
A114: =A113+Funkce!$B$5 -> -11.04 | B114: =fce -> -0.0904903388 | C114: 0.08 | D114: -0.000692809173 | E114: -0.008660114662 | F114: -0.007266939471 | G114: -0.03370045378
A115: =A114+Funkce!$B$5 -> -10.96 | B115: =fce -> -0.09118314797 | C115: 0.08 | D115: -0.0001154478846 | E115: -0.001443098557 | F115: -0.007299269753 | G115: -0.04099972353
A116: =A115+Funkce!$B$5 -> -10.88 | B116: =fce -> -0.09129859586 | C116: 0.08 | D116: 0.0004711671456 | E116: 0.00588958932 | F116: -0.007285040983 | G116: -0.04828476452
A117: =A116+Funkce!$B$5 -> -10.8 | B117: =fce -> -0.09082742871 | C117: 0.08 | D117: 0.00106352079 | E117: 0.01329400987 | F117: -0.007223653465 | G117: -0.05550841798
A118: =A117+Funkce!$B$5 -> -10.72 | B118: =fce -> -0.08976390792 | C118: 0.08 | D118: 0.001658013429 | E118: 0.02072516786 | F118: -0.007114792096 | G118: -0.06262321008
A119: =A118+Funkce!$B$5 -> -10.64 | B119: =fce -> -0.08810589449 | C119: 0.08 | D119: 0.002250981422 | E119: 0.02813726777 | F119: -0.006958432302 | G119: -0.06958164238
A120: =A119+Funkce!$B$5 -> -10.56 | B120: =fce -> -0.08585491307 | C120: 0.08 | D120: 0.002838718207 | E120: 0.03548397759 | F120: -0.006754844317 | G120: -0.0763364867
A121: =A120+Funkce!$B$5 -> -10.48 | B121: =fce -> -0.08301619486 | C121: 0.08 | D121: 0.003417495912 | E121: 0.0427186989 | F121: -0.006504595753 | G121: -0.08284108245
A122: =A121+Funkce!$B$5 -> -10.4 | B122: =fce -> -0.07959869895 | C122: 0.08 | D122: 0.003983587356 | E122: 0.04979484195 | F122: -0.006208552422 | G122: -0.08904963487
A123: =A122+Funkce!$B$5 -> -10.32 | B123: =fce -> -0.07561511159 | C123: 0.08 | D123: 0.004533288318 | E123: 0.05666610397 | F123: -0.005867877395 | G123: -0.09491751227
A124: =A123+Funkce!$B$5 -> -10.24 | B124: =fce -> -0.07108182328 | C124: 0.08 | D124: 0.005062939946 | E124: 0.06328674933 | F124: -0.005484028264 | G124: -0.1004015405
A125: =A124+Funkce!$B$5 -> -10.16 | B125: =fce -> -0.06601888333 | C125: 0.08 | D125: 0.005568951181 | E125: 0.06961188976 | F125: -0.005058752619 | G125: -0.1054602931
A126: =A125+Funkce!$B$5 -> -10.08 | B126: =fce -> -0.06044993215 | C126: 0.08 | D126: 0.00604782106 | E126: 0.07559776325 | F126: -0.00459408173 | G126: -0.1100543749
A127: =A126+Funkce!$B$5 -> -10 | B127: =fce -> -0.05440211109 | C127: 0.08 | D127: 0.006496160773 | E127: 0.08120200966 | F127: -0.004092322456 | G127: -0.1141466973
A128: =A127+Funkce!$B$5 -> -9.92 | B128: =fce -> -0.04790595032 | C128: 0.08 | D128: 0.00691071534 | E128: 0.08638394174 | F128: -0.003556047412 | G128: -0.1177027447
A129: =A128+Funkce!$B$5 -> -9.84 | B129: =fce -> -0.04099523498 | C129: 0.08 | D129: 0.007288384781 | E129: 0.09110480976 | F129: -0.002988083407 | G129: -0.1206908282
A130: =A129+Funkce!$B$5 -> -9.76 | B130: =fce -> -0.0337068502 | C130: 0.08 | D130: 0.007626244655 | E130: 0.09532805819 | F130: -0.002391498229 | G130: -0.1230823264
A131: =A130+Funkce!$B$5 -> -9.68 | B131: =fce -> -0.02608060554 | C131: =A132-A131 -> 0.08 | D131: =B132-B131 -> 0.007921565829 | E131: =D131/C131 -> 0.09901957287 | F131: =0.5*C131*(B131+B132) -> -0.00176958581 | G131: -0.1248519122
A132: =A131+Funkce!$B$5 -> -9.6 | B132: =fce -> -0.01815903971 | C132: 0.08 | D132: 0.008171833374 | E132: 0.1021479172 | F132: -0.001125849842 | G132: =F132+G131 -> -0.125977762
A133: =A132+Funkce!$B$5 -> -9.52 | B133: =fce -> -0.009987206337 | C133: 0.08 | D133: 0.008374764453 | E133: 0.1046845557 | F133: -0.0004639859288 | G133: -0.126441748
A134: =A133+Funkce!$B$5 -> -9.44 | B134: =fce -> -0.001612441884 | C134: 0.08 | D134: 0.0085283251 | E134: 0.1066040637 | F134: 0.0002121376533 | G134: -0.1262296103
A135: =A134+Funkce!$B$5 -> -9.36 | B135: =fce -> 0.006915883216 | C135: 0.08 | D135: 0.008630745774 | E135: 0.1078843222 | F135: 0.0008985004882 | G135: -0.1253311098
A136: =A135+Funkce!$B$5 -> -9.28 | B136: =fce -> 0.01554662899 | C136: 0.08 | D136: 0.008680535587 | E136: 0.1085066948 | F136: 0.001590951743 | G136: -0.1237401581
A137: =A136+Funkce!$B$5 -> -9.2 | B137: =fce -> 0.02422716458 | C137: 0.08 | D137: 0.008676495113 | E137: 0.1084561889 | F137: 0.002285232971 | G137: -0.1214549251
A138: =A137+Funkce!$B$5 -> -9.12 | B138: =fce -> 0.03290365969 | C138: 0.08 | D138: 0.008617727687 | E138: 0.1077215961 | F138: 0.002977001883 | G138: -0.1184779232
A139: =A138+Funkce!$B$5 -> -9.04 | B139: =fce -> 0.04152138738 | C139: 0.08 | D139: 0.008503649113 | E139: 0.1062956139 | F139: 0.003661856955 | G139: -0.1148160663
A140: =A139+Funkce!$B$5 -> -8.96 | B140: =fce -> 0.05002503649 | C140: 0.08 | D140: 0.008333995709 | E140: 0.1041749464 | F140: 0.004335362747 | G140: -0.1104807035
A141: =A140+Funkce!$B$5 -> -8.88 | B141: =fce -> 0.0583590322 | C141: 0.08 | D141: 0.00810883063 | E141: 0.1013603829 | F141: 0.004993075801 | G141: -0.1054876277
A142: =A141+Funkce!$B$5 -> -8.8 | B142: =fce -> 0.06646786283 | C142: 0.08 | D142: 0.007828548401 | E142: 0.09785685501 | F142: 0.005630570962 | G142: -0.09985705676
A143: =A142+Funkce!$B$5 -> -8.72 | B143: =fce -> 0.07429641123 | C143: 0.08 | D143: 0.007493877629 | E143: 0.09367347036 | F143: 0.006243468004 | G143: -0.09361358876
A144: =A143+Funkce!$B$5 -> -8.64 | B144: =fce -> 0.08179028886 | C144: 0.08 | D144: 0.007105881856 | E144: 0.08882352321 | F144: 0.006827458383 | G144: -0.08678613037
A145: =A144+Funkce!$B$5 -> -8.56 | B145: =fce -> 0.08889617071 | C145: 0.08 | D145: 0.00666595852 | E145: 0.0833244815 | F145: 0.007378331998 | G145: -0.07940779838
A146: =A145+Funkce!$B$5 -> -8.48 | B146: =fce -> 0.09556212923 | C146: 0.08 | D146: 0.006175836014 | E146: 0.07719795017 | F146: 0.007892003779 | G146: -0.0715157946
A147: =A146+Funkce!$B$5 -> -8.4 | B147: =fce -> 0.1017379652 | C147: 0.08 | D147: 0.005637568845 | E147: 0.07046961057 | F147: 0.008364539974 | G147: -0.06315125462
A148: =A147+Funkce!$B$5 -> -8.32 | B148: =fce -> 0.1073755341 | C148: 0.08 | D148: 0.005053530893 | E148: 0.06316913617 | F148: 0.008792183963 | G148: -0.05435907066
A149: =A148+Funkce!$B$5 -> -8.24 | B149: =fce -> 0.112429065 | C149: 0.08 | D149: 0.004426406783 | E149: 0.05533008479 | F149: 0.00917138147 | G149: -0.04518768919
A150: =A149+Funkce!$B$5 -> -8.16 | B150: =fce -> 0.1168554718 | C150: 0.08 | D150: 0.00375918141 | E150: 0.04698976763 | F150: 0.009498804998 | G150: -0.03568888419
A151: =A150+Funkce!$B$5 -> -8.08 | B151: =fce -> 0.1206146532 | C151: 0.08 | D151: 0.003055127647 | E151: 0.03818909558 | F151: 0.00977137736 | G151: -0.02591750683
A152: =A151+Funkce!$B$5 -> -8 | B152: =fce -> 0.1236697808 | C152: 0.08 | D152: 0.002317792285 | E152: 0.02897240356 | F152: 0.009986294158 | G152: -0.01593121267
A153: =A152+Funkce!$B$5 -> -7.92 | B153: =fce -> 0.1259875731 | C153: 0.08 | D153: 0.001550980273 | E153: 0.01938725342 | F153: 0.01014104506 | G153: -0.005790167614
A154: =A153+Funkce!$B$5 -> -7.84 | B154: =fce -> 0.1275385534 | C154: 0.08 | D154: 0.0007587373174 | E154: 0.009484216467 | F154: 0.01023343376 | G154: 0.00444326615
A155: =A154+Funkce!$B$5 -> -7.76 | B155: =fce -> 0.1282972907 | C155: 0.08 | D155: -5.466907969e-05 | E155: -0.0006833634961 | F155: 0.01026159649 | G155: 0.01470486264
A156: =A155+Funkce!$B$5 -> -7.68 | B156: =fce -> 0.1282426216 | C156: 0.08 | D156: -0.0008847700408 | E156: -0.01105962551 | F156: 0.01022401893 | G156: 0.02492888157
A157: =A156+Funkce!$B$5 -> -7.6 | B157: =fce -> 0.1273578516 | C157: 0.08 | D157: -0.001726917113 | E157: -0.02158646391 | F157: 0.01011955144 | G157: 0.03504843301
A158: =A157+Funkce!$B$5 -> -7.52 | B158: =fce -> 0.1256309345 | C158: 0.08 | D158: -0.002576305327 | E158: -0.03220381658 | F158: 0.009947422545 | G158: 0.04499585556
A159: =A158+Funkce!$B$5 -> -7.44 | B159: =fce -> 0.1230546291 | C159: 0.08 | D159: -0.003427997411 | E159: -0.04284996764 | F159: 0.009707250435 | G159: 0.05470310599
A160: =A159+Funkce!$B$5 -> -7.36 | B160: =fce -> 0.1196266317 | C160: 0.08 | D160: -0.004276949034 | E160: -0.05346186292 | F160: 0.009399052577 | G160: 0.06410215857
A161: =A160+Funkce!$B$5 -> -7.28 | B161: =fce -> 0.1153496827 | C161: 0.08 | D161: -0.005118034942 | E161: -0.06397543678 | F161: 0.009023253218 | G161: 0.07312541179
A162: =A161+Funkce!$B$5 -> -7.2 | B162: =fce -> 0.1102316478 | C162: 0.08 | D162: -0.005946075875 | E162: -0.07432594844 | F162: 0.008580688786 | G162: 0.08170610057
A163: =A162+Funkce!$B$5 -> -7.12 | B163: =fce -> 0.1042855719 | C163: 0.08 | D163: -0.006755866099 | E163: -0.08444832624 | F163: 0.008072611107 | G163: 0.08977871168
A164: =A163+Funkce!$B$5 -> -7.04 | B164: =fce -> 0.09752970578 | C164: 0.08 | D164: -0.007542201426 | E164: -0.09427751782 | F164: 0.007500688406 | G164: 0.09727940009
A165: =A164+Funkce!$B$5 -> -6.96 | B165: =fce -> 0.08998750436 | C165: 0.08 | D165: -0.008299907569 | E165: -0.1037488446 | F165: 0.006867004046 | G165: 0.1041464041
A166: =A165+Funkce!$B$5 -> -6.88 | B166: =fce -> 0.08168759679 | C166: 0.08 | D166: -0.009023868679 | E166: -0.1127983585 | F166: 0.006174052996 | G166: 0.1103204571
A167: =A166+Funkce!$B$5 -> -6.8 | B167: =fce -> 0.07266372811 | C167: 0.08 | D167: -0.009709055915 | E167: -0.1213631989 | F167: 0.005424736012 | G167: 0.1157451931
A168: =A167+Funkce!$B$5 -> -6.72 | B168: =fce -> 0.06295467219 | C168: 0.08 | D168: -0.01035055588 | E168: -0.1293819485 | F168: 0.00462235154 | G168: 0.1203675447
A169: =A168+Funkce!$B$5 -> -6.64 | B169: =fce -> 0.05260411631 | C169: 0.08 | D169: -0.01094359879 | E169: -0.1367949848 | F169: 0.003770585354 | G169: 0.12413813
A170: =A169+Funkce!$B$5 -> -6.56 | B170: =fce -> 0.04166051753 | C170: 0.08 | D170: -0.01148358618 | E170: -0.1435448273 | F170: 0.002873497955 | G170: 0.127011628
A171: =A170+Funkce!$B$5 -> -6.48 | B171: =fce -> 0.03017693134 | C171: 0.08 | D171: -0.01196611808 | E171: -0.1495764761 | F171: 0.001935509784 | G171: 0.1289471378
A172: =A171+Funkce!$B$5 -> -6.4 | B172: =fce -> 0.01821081326 | C172: 0.08 | D172: -0.01238701936 | E172: -0.154837742 | F172: 0.0009613842862 | G172: 0.1299085221
A173: =A172+Funkce!$B$5 -> -6.32 | B173: =fce -> 0.005823793897 | C173: 0.08 | D173: -0.01274236524 | E173: -0.1592795656 | F173: -4.379109804e-05 | G173: 0.129864731
A174: =A173+Funkce!$B$5 -> -6.24 | B174: =fce -> -0.006918571348 | C174: 0.08 | D174: -0.01302850578 | E174: -0.1628563223 | F174: -0.001074625939 | G174: 0.128790105
A175: =A174+Funkce!$B$5 -> -6.16 | B175: =fce -> -0.01994707713 | C175: 0.08 | D175: -0.01324208912 | E175: -0.1655261139 | F175: -0.002125449735 | G175: 0.1266646553
A176: =A175+Funkce!$B$5 -> -6.08 | B176: =fce -> -0.03318916624 | C176: 0.08 | D176: -0.01338008346 | E176: -0.1672510432 | F176: -0.003190336638 | G176: 0.1234743186
A177: =A176+Funkce!$B$5 -> -6 | B177: =fce -> -0.0465692497 | C177: 0.08 | D177: -0.0134397976 | E177: -0.1679974699 | F177: -0.00426313188 | G177: 0.1192111868
A178: =A177+Funkce!$B$5 -> -5.92 | B178: =fce -> -0.0600090473 | C178: 0.08 | D178: -0.01341889985 | E178: -0.1677362481 | F178: -0.005337479778 | G178: 0.113873707
A179: =A178+Funkce!$B$5 -> -5.84 | B179: =fce -> -0.07342794715 | C179: 0.08 | D179: -0.01331543534 | E179: -0.1664429417 | F179: -0.006406853185 | G179: 0.1074668538
A180: =A179+Funkce!$B$5 -> -5.76 | B180: =fce -> -0.08674338249 | C180: 0.08 | D180: -0.01312784145 | E180: -0.1640980181 | F180: -0.007464584257 | G180: 0.1000022696
A181: =A180+Funkce!$B$5 -> -5.68 | B181: =fce -> -0.09987122393 | C181: 0.08 | D181: -0.0128549614 | E181: -0.1606870175 | F181: -0.008503896371 | G181: 0.09149837318
A182: =A181+Funkce!$B$5 -> -5.6 | B182: =fce -> -0.1127261853 | C182: 0.08 | D182: -0.0124960559 | E182: -0.1562006987 | F182: -0.009517937063 | G182: 0.08198043612
A183: =A182+Funkce!$B$5 -> -5.52 | B183: =fce -> -0.1252222412 | C183: 0.08 | D183: -0.0120508126 | E183: -0.1506351576 | F183: -0.0104998118 | G183: 0.07148062431
A184: =A183+Funkce!$B$5 -> -5.44 | B184: =fce -> -0.1372730538 | C184: 0.08 | D184: -0.01151935361 | E184: -0.1439919201 | F184: -0.01144261845 | G184: 0.06003800586
A185: =A184+Funkce!$B$5 -> -5.36 | B185: =fce -> -0.1487924074 | C185: 0.08 | D185: -0.01090224063 | E185: -0.1362780079 | F185: -0.01233948222 | G185: 0.04769852364
A186: =A185+Funkce!$B$5 -> -5.28 | B186: =fce -> -0.1596946481 | C186: 0.08 | D186: -0.01020047802 | E186: -0.1275059753 | F186: -0.01318359097 | G186: 0.03451493267
A187: =A186+Funkce!$B$5 -> -5.2 | B187: =fce -> -0.1698951261 | C187: 0.08 | D187: -0.009415513484 | E187: -0.1176939185 | F187: -0.01396823063 | G187: 0.02054670205
A188: =A187+Funkce!$B$5 -> -5.12 | B188: =fce -> -0.1793106396 | C188: 0.08 | D188: -0.008549236526 | E188: -0.1068654566 | F188: -0.01468682063 | G188: 0.00585988142
A189: =A188+Funkce!$B$5 -> -5.04 | B189: =fce -> -0.1878598761 | C189: 0.08 | D189: -0.007603974587 | E189: -0.09504968233 | F189: -0.01533294907 | G189: -0.009473067653
A190: =A189+Funkce!$B$5 -> -4.96 | B190: =fce -> -0.1954638507 | C190: 0.08 | D190: -0.006582486878 | E190: -0.08228108597 | F190: -0.01590040753 | G190: -0.02537347518
A191: =A190+Funkce!$B$5 -> -4.88 | B191: =fce -> -0.2020463376 | C191: 0.08 | D191: -0.005487955933 | E191: -0.06859944917 | F191: -0.01638322524 | G191: -0.04175670043
A192: =A191+Funkce!$B$5 -> -4.8 | B192: =fce -> -0.2075342935 | C192: 0.08 | D192: -0.004323976901 | E192: -0.05404971127 | F192: -0.01677570256 | G192: -0.05853240298
A193: =A192+Funkce!$B$5 -> -4.72 | B193: =fce -> -0.2118582704 | C193: 0.08 | D193: -0.003094544612 | E193: -0.03868180765 | F193: -0.01707244342 | G193: -0.0756048464
A194: =A193+Funkce!$B$5 -> -4.64 | B194: =fce -> -0.214952815 | C194: 0.08 | D194: -0.001804038474 | E194: -0.02255048093 | F194: -0.01726838674 | G194: -0.09287323314
A195: =A194+Funkce!$B$5 -> -4.56 | B195: =fce -> -0.2167568535 | C195: =A196-A195 -> 0.08 | D195: =B196-B195 -> -0.0004572052602 | E195: =D195/C195 -> -0.005715065752 | F195: =0.5*C195*(B195+B196) -> -0.01735883649 | G195: -0.1102320696
A196: =A195+Funkce!$B$5 -> -4.48 | B196: =fce -> -0.2172140588 | C196: 0.08 | D196: 0.0009408601444 | E196: 0.0117607518 | F196: -0.01733949029 | G196: =F196+G195 -> -0.1275715599
A197: =A196+Funkce!$B$5 -> -4.4 | B197: =fce -> -0.2162731986 | C197: 0.08 | D197: 0.002384735944 | E197: 0.0298091993 | F197: -0.01720646645 | G197: -0.1447780264
A198: =A197+Funkce!$B$5 -> -4.32 | B198: =fce -> -0.2138884627 | C198: 0.08 | D198: 0.003868696492 | E198: 0.04835870616 | F198: -0.01695632915 | G198: -0.1617343555
A199: =A198+Funkce!$B$5 -> -4.24 | B199: =fce -> -0.2100197662 | C199: 0.08 | D199: 0.005386737104 | E199: 0.0673342138 | F199: -0.01658611181 | G199: -0.1783204673
A200: =A199+Funkce!$B$5 -> -4.16 | B200: =fce -> -0.2046330291 | C200: 0.08 | D200: 0.006932600497 | E200: 0.08665750621 | F200: -0.01609333831 | G200: -0.1944138056
... 400 more rows
